bitfinex-derivatives/quotes_ETHF0:USTF0_20241018
["timestamp","ask_amount","ask_price","bid_price","bid_amount"]
[1729263251609,0.37821,2644.2,2643.9,0.9756]
[1729263251794,3.2078,2644.4,2643.9,0.9756]
[1729263252202,0.3782,2644.2,2643.9,0.9756]
[1729263252508,3.2078,2644.4,2644.0,0.37822]
[1729263252706,3.2078,2644.4,2643.9,0.9756]
[1729263252901,3.2078,2644.4,2644.1,0.37821]
[1729263252902,0.37821,2644.2,2644.1,0.37821]
[1729263253296,3.2078,2644.4,2643.9,0.9756]
[1729263253602,0.37819,2644.3,2644.0,0.37822]
[1729263253806,4.15324,2644.4,2644.0,0.37823]
[1729263253807,0.37821,2644.1,2644.0,0.37823]
[1729263254008,4.15324,2644.4,2643.9,0.9756]
[1729263254200,0.37821,2644.2,2643.9,0.9756]
[1729263254396,3.2078,2644.4,2643.9,0.9756]
[1729263254610,3.2078,2644.4,2644.1,0.37821]
[1729263254611,0.37821,2644.2,2644.1,0.37821]
[1729263254807,4.15324,2644.4,2643.9,0.9756]
[1729263255007,0.37823,2644.0,2643.9,1.35384]
[1729263255398,0.37823,2644.0,2643.9,0.9756]
[1729263255600,0.37824,2643.9,2643.8,0.52854949]
[1729263255907,0.37826,2643.8,2643.7,3.2078]
[1729263256303,0.37826,2643.8,2643.7,3.72441484]
[1729263258504,0.37826,2643.8,2643.7,4.10268484]
[1729263259006,4.15324,2644.4,2644.0,0.37822]
[1729263259206,2.95,2644.3,2643.8,0.4748]
[1729263259708,0.37824,2644.0,2643.9,0.37824]
[1729263259916,0.3782,2644.2,2643.9,0.37824]
[1729263260108,0.94551,2644.2,2643.8,0.85305]
[1729263260410,0.94551,2644.2,2643.8,0.4748]
[1729263260604,0.37824,2644.0,2643.7,4.22341484]
[1729263261010,0.37824,2643.9,2643.8,0.37826]
[1729263261408,0.37826,2643.8,2643.7,4.10268484]
[1729263261604,0.37823,2644.1,2643.8,0.37826]
[1729263261904,0.94552,2644.2,2643.7,3.72441484]
[1729263262105,0.37826,2643.8,2643.7,4.10267484]
[1729263262304,0.94555,2644.1,2643.7,3.72441484]
[1729263262504,0.94555,2644.1,2643.7,4.10267484]
[1729263262714,0.37825,2643.9,2643.8,0.37825]
[1729263262913,0.94555,2644.1,2643.7,3.72441484]
[1729263263108,3.89548,2644.3,2643.7,3.72441484]
[1729263263109,0.4805,2644.0,2643.7,3.72441484]
[1729263263313,0.37826,2643.8,2643.7,4.10267484]
[1729263263905,0.37826,2643.8,2643.7,3.72441484]
[1729263264110,0.37826,2643.8,2643.7,3.2078]
[1729263264711,0.3783,2643.5,2643.4,3.72751397]
[1729263265116,0.3783,2643.5,2643.4,4.10582397]
[1729263265610,0.3783,2643.5,2643.4,3.72751397]
[1729263265907,0.3783,2643.5,2643.4,4.10582397]
[1729263266507,0.37829,2643.7,2643.5,0.37829]
[1729263266708,0.37829,2643.7,2643.6,0.37829]
[1729263266901,1.47575026,2643.9,2643.5,0.4933]
[1729263267312,0.37827,2643.7,2643.6,0.37829]
[1729263267513,0.37826,2643.8,2643.7,0.37826]
[1729263267905,1.47575026,2643.9,2643.8,0.37826]
[1729263268118,4.57347026,2644.1,2644.0,0.37823]
[1729263268311,0.37821,2644.1,2644.0,0.37823]
[1729263268620,0.98745026,2644.2,2643.8,0.94564]
[1729263268621,1.36566026,2644.2,2644.1,0.37821]
[1729263268914,0.37821,2644.2,2644.1,0.37821]
[1729263269115,1.36566026,2644.2,2644.1,0.37821]
[1729263269718,1.36566026,2644.2,2643.6,4.38211]
[1729263269719,0.98745026,2644.2,2643.6,4.38211]
[1729263269911,0.37823,2644.1,2644.0,0.37821]
[1729263270315,0.3782,2644.2,2644.1,0.37821]
[1729263272415,1.36565026,2644.2,2644.1,0.37821]
[1729263273214,0.3782,2644.2,2644.1,0.37821]
[1729263273519,0.3782,2644.3,2644.2,0.3782]
[1729263274118,0.98745026,2644.4,2644.1,0.5116]
[1729263274314,1.36562026,2644.4,2644.3,0.37819]
[1729263274521,0.37817,2644.4,2644.3,0.37819]
[1729263274817,2.39402026,2644.5,2644.4,0.37817]
[1729263275521,0.3782,2644.2,2644.1,0.5194874]
[1729263275717,1.47618042,2644.2,2643.8,0.51532734]
[1729263276019,1.47618042,2644.2,2643.6,0.37827]
[1729263276020,0.37829,2643.7,2643.6,0.37827]
[1729263276219,0.37829,2643.6,2643.5,3.58609]
[1729263276425,1.36687307,2643.7,2643.6,0.37829]
[1729263276622,2.35445307,2643.8,2643.6,0.37829]
[1729263276820,1.97619307,2643.8,2643.5,3.2078]
[1729263277219,0.98859307,2643.7,2643.5,3.2078]
[1729263277416,0.37829,2643.6,2643.5,0.37829]
[1729263277617,1.36688307,2643.6,2643.5,0.37829]
[1729263277811,0.37831,2643.5,2643.4,0.37831]
[1729263278322,1.36690307,2643.5,2643.4,0.37831]
[1729263278532,0.37831,2643.4,2643.3,0.4777]
[1729263278821,0.37833,2643.3,2643.2,3.71839527]
[1729263279024,2.34101042,2643.3,2643.2,3.71839527]
[1729263279222,2.34101042,2643.3,2643.2,3.2078]
[1729263279821,4.64803,2643.3,2643.2,3.2078]
[1729263280224,2.8362792,2643.3,2643.2,3.2078]
[1729263280621,0.86483,2643.3,2643.2,3.58614]
[1729263280819,0.86483,2643.3,2643.2,3.2078]
[1729263281720,2.34962845,2643.3,2643.2,3.2078]
[1729263281921,1.86312845,2643.3,2643.2,3.58614]
[1729263283726,1.86312845,2643.3,2643.2,3.2078]
[1729263284028,1.86312845,2643.3,2643.2,3.58614]
[1729263284327,0.37833,2643.3,2643.2,3.2078]
[1729263284531,0.37833,2643.3,2643.2,3.58614]
[1729263285333,1.36785014,2643.3,2643.2,3.58614]
[1729263285628,0.37833,2643.3,2643.2,3.58614]
[1729263286329,1.36761607,2643.3,2643.2,3.58614]
[1729263286630,1.36761607,2643.3,2642.6,0.37842]
[1729263286631,1.32421,2643.2,2642.6,0.37842]
[1729263286824,1.86267445,2642.7,2642.5,1.40253]
[1729263287028,0.98954964,2642.6,2642.5,1.91236089]
[1729263287225,0.98954964,2642.7,2642.5,1.53393089]
[1729263287435,1.36796964,2642.7,2642.5,0.88826089]
[1729263287630,1.36796964,2642.7,2642.5,0.50983089]
[1729263287828,1.48425445,2642.9,2642.4,1.0127]
[1729263287829,0.98954964,2642.8,2642.4,1.0127]
[1729263288133,1.48425445,2642.9,2642.4,1.95884]
[1729263288134,1.36793964,2642.9,2642.4,1.95884]
[1729263288328,4.57572964,2643.0,2642.8,0.3784]
[1729263288527,0.37839,2642.9,2642.7,0.3784]
[1729263288733,4.19734964,2643.0,2642.8,0.37839]
[1729263289028,0.37838,2643.0,2642.8,0.3784]
[1729263289337,0.98954964,2643.1,2642.6,2.95]
[1729263289338,0.37839,2642.9,2642.7,3.5862]
[1729263290029,0.37837,2643.1,2642.9,0.37838]
[1729263290332,0.37839,2642.9,2642.7,3.2078]
[1729263290528,2.04094964,2643.2,2642.7,3.2078]
[1729263290730,0.3784,2642.8,2642.6,3.32842]
[1729263290928,1.93545964,2643.1,2642.5,3.2078]
[1729263291132,0.37843,2642.6,2642.4,4.47159466]
[1729263291338,0.37843,2642.6,2642.4,8.05784466]
[1729263291638,0.94597,2643.0,2642.5,0.37844]
[1729263291829,0.37843,2642.6,2642.5,0.37844]
[1729263292037,1.93545964,2643.1,2642.4,7.67939466]
[1729263292329,0.37844,2642.5,2642.4,4.72939466]
[1729263292535,0.37844,2642.5,2642.4,1.52159466]
[1729263295740,0.37844,2642.5,2642.4,0.50889466]
[1729263295924,0.37844,2642.5,2641.9,2.95]
[1729263295925,0.5118,2642.6,2642.0,1.5323]
[1729263296130,0.94612,2642.5,2642.1,0.3785]
[1729263296432,0.3785,2642.1,2642.0,1.0332]
[1729263296638,0.3785,2642.1,2642.0,1.55546275]
[1729263297535,0.3785,2642.1,2642.0,1.93398275]
[1729263297841,0.3785,2642.2,2642.0,1.93397275]
[1729263298041,0.3785,2642.1,2642.0,1.93397275]
[1729263298246,0.3785,2642.1,2642.0,1.55546275]
[1729263298427,0.3785,2642.2,2642.0,1.93397275]
[1729263298628,0.3785,2642.1,2642.0,1.55546275]
[1729263298835,0.3785,2642.1,2642.0,1.93398275]
[1729263299335,3.2078,2642.4,2642.0,1.55546275]
[1729263299536,0.37848,2642.3,2642.0,1.55546275]
[1729263299741,0.37848,2642.3,2642.2,0.37849]
[1729263300037,3.2078,2642.4,2642.0,1.55546275]
[1729263300240,3.2078,2642.4,2642.3,0.37847]
[1729263300539,3.58627,2642.4,2642.1,2.95]
[1729263300729,0.37847,2642.3,2642.2,0.90668]
[1729263300929,0.37847,2642.4,2642.3,0.37847]
[1729263301337,1.041,2642.6,2642.2,0.5282]
[1729263301338,0.37847,2642.3,2642.2,0.5282]
[1729263301542,3.991,2642.6,2642.0,4.76326275]
[1729263301738,0.37848,2642.3,2642.1,0.37849]
[1729263302039,0.37845,2642.5,2642.4,0.37845]
[1729263302234,1.041,2642.6,2642.3,0.90667]
[1729263302235,0.37846,2642.4,2642.3,0.90667]
[1729263302436,0.3785,2642.1,2642.0,0.52226275]
[1729263302635,0.37857,2641.7,2641.5,1.40017]
[1729263302843,0.9462,2642.3,2641.5,1.40017]
[1729263302844,3.2078,2642.1,2641.5,4.98133631]
[1729263303044,0.37857,2641.7,2641.5,4.98133631]
[1729263303237,0.37857,2641.6,2641.5,2.03133631]
[1729263303740,0.37857,2641.6,2641.5,1.50313631]
[1729263303927,0.37857,2641.7,2641.5,1.88171631]
[1729263304135,0.4922,2641.9,2641.5,1.88171631]
[1729263304136,0.4922,2641.9,2641.5,1.50313631]
[1729263304341,0.37857,2641.6,2641.5,1.50313631]
[1729263304734,0.37856,2641.7,2641.5,1.88171631]
[1729263304933,0.37857,2641.6,2641.5,0.51403631]
[1729263305129,0.3786,2641.5,2641.3,0.37861]
[1729263305331,0.37859,2641.5,2641.3,0.37861]
[1729263306040,6.1578,2641.8,2641.3,1.0144]
[1729263306246,6.1578,2641.8,2641.2,3.32862]
[1729263306247,0.3787,2640.8,2640.6,3.2078]
[1729263306435,0.3787,2640.7,2640.6,3.2078]
[1729263306637,0.94667,2641.0,2640.4,3.2078]
[1729263306844,0.37874,2640.4,2640.3,0.51658594]
[1729263307049,0.94673,2640.8,2640.1,0.37878]
[1729263307050,3.2078,2640.9,2640.1,2.46658594]
[1729263307352,3.2078,2640.9,2640.3,2.95]
[1729263307556,3.2078,2640.9,2640.3,6.1578]
[1729263307740,2.95,2641.1,2640.0,1.94359]
[1729263307741,1.0512,2641.2,2640.5,2.95]
[1729263307948,1.0512,2641.2,2640.9,0.37867]
[1729263308142,0.37867,2641.0,2640.7,0.37869]
[1729263308346,1.0512,2641.2,2640.6,1.5072]
[1729263308647,1.0512,2641.2,2641.0,0.37865]
[1729263308847,3.2078,2641.5,2640.7,3.2078]
[1729263309041,3.2078,2641.5,2641.0,0.37865]
[1729263309243,3.5864,2641.5,2641.1,0.37864]
[1729263309443,3.2078,2641.5,2640.7,4.15454]
[1729263309656,0.37859,2641.5,2641.2,0.37863]
[1729263309842,0.37859,2641.5,2640.7,4.15454]
[1729263310048,1.0071,2641.6,2640.9,0.94669]
[1729263310248,1.0071,2641.6,2641.5,0.37859]
[1729263310449,3.2078,2641.8,2641.0,6.8478]
[1729263310450,3.2078,2641.8,2641.2,0.94657]
[1729263310645,3.2078,2641.8,2641.7,0.37856]
[1729263310846,0.4927,2642.0,2641.3,8.3351]
[1729263311145,0.87123,2642.0,2641.7,0.37855]
[1729263311341,0.4927,2642.0,2641.7,0.37855]
[1729263311556,0.37854,2641.9,2641.7,0.37856]
[1729263311852,0.87122,2642.0,2641.4,0.94651]
[1729263312048,0.87122,2642.0,2641.8,0.37854]
[1729263312357,0.87122,2642.0,2641.3,8.3351]
[1729263312556,0.87122,2642.0,2641.8,0.37854]
[1729263312557,0.4927,2642.0,2641.8,0.37854]
[1729263312849,0.4927,2642.0,2641.3,8.3351]
[1729263312850,0.4927,2642.0,2641.5,0.94647]
[1729263313254,0.4927,2642.0,2641.9,0.37853]
[1729263313757,0.4927,2642.0,2641.5,0.94647]
[1729263313948,0.4927,2642.0,2641.8,0.37854]
[1729263314143,0.37855,2641.8,2641.6,0.37856]
[1729263314350,0.4927,2642.0,2641.3,3.72460008]
[1729263314351,3.2078,2641.9,2641.3,3.72460008]
[1729263314548,0.37855,2641.8,2641.7,0.37855]
[1729263315044,4.16416,2641.8,2641.6,0.37857]
[1729263315251,3.2078,2641.9,2641.3,3.72460008]
[1729263315450,0.3786,2641.4,2641.3,3.72460008]
[1729263315753,0.3786,2641.4,2641.3,4.10321008]
[1729263316255,0.37859,2641.5,2641.3,3.72460008]
[1729263316449,3.64,2641.8,2641.3,3.72460008]
[1729263316753,0.37859,2641.5,2641.4,0.37859]
[1729263316955,3.64,2641.8,2641.3,3.72460008]
[1729263317143,40.8,2641.5,2641.4,0.3786]
[1729263317551,44.96419,2641.5,2641.4,0.3786]
[1729263317750,46.02429,2641.5,2641.4,0.3786]
[1729263318358,0.3786,2641.4,2641.3,3.72460008]
[1729263318564,41.8601,2641.5,2641.3,3.72460008]
[1729263318857,0.3786,2641.4,2641.3,3.72460008]
[1729263319447,0.37862,2641.3,2641.2,0.37862]
[1729263319852,0.37862,2641.3,2641.1,0.37863]
[1729263320051,41.8601,2641.5,2640.8,0.94671]
[1729263320350,41.8601,2641.5,2641.4,0.3786]
[1729263320549,40.8,2641.5,2641.4,0.3786]
[1729263320758,0.3786,2641.4,2640.8,5.10278759]
[1729263320955,40.8,2641.5,2640.8,5.10278759]
[1729263320956,0.37863,2641.3,2641.0,0.37865]
[1729263321151,0.37865,2641.1,2640.9,0.37867]
[1729263321555,0.37865,2641.1,2640.7,4.7655]
[1729263321556,0.542,2641.2,2640.7,4.7655]
[1729263321759,0.37867,2641.0,2640.7,5.14419]
[1729263321957,0.37866,2641.0,2640.7,5.14419]
[1729263322264,0.37866,2641.0,2640.7,4.7655]
[1729263322452,0.5379,2641.1,2640.7,4.7655]
[1729263322755,0.37868,2640.9,2640.7,5.1442]
[1729263323057,0.37868,2640.9,2640.7,4.7655]
[1729263323248,0.37868,2640.9,2640.7,5.14419]
[1729263324054,0.5379,2641.1,2640.7,5.14419]
[1729263324256,0.37869,2640.9,2640.7,5.14419]
[1729263324561,0.37869,2640.9,2640.7,5.66002955]
[1729263324963,0.37869,2640.9,2640.8,0.37869]
[1729263325167,0.5379,2641.1,2640.7,5.66002955]
[1729263325168,0.37869,2640.8,2640.7,5.66002955]
[1729263325866,0.5379,2641.1,2640.7,5.28133955]
[1729263326070,0.37859,2641.5,2641.0,4.58664]
[1729263326365,4.15425,2641.6,2641.0,3.2078]
[1729263326659,4.15425,2641.6,2641.2,0.37862]
[1729263326660,3.2078,2641.6,2641.2,0.37862]
[1729263326861,0.37859,2641.5,2641.1,0.37863]
[1729263327062,0.37864,2641.1,2641.0,3.58646]
[1729263327253,7.79425,2641.6,2640.7,1.5577]
[1729263327459,7.79425,2641.6,2641.2,0.37863]
[1729263327460,0.37863,2641.3,2641.2,0.37863]
[1729263328465,7.79425,2641.6,2640.7,1.5577]
[1729263328660,0.37864,2641.2,2641.1,0.37864]
[1729263329168,0.94648,2641.5,2640.7,2.50445]
[1729263329467,0.37863,2641.3,2641.2,0.37863]
[1729263329672,7.79425,2641.6,2640.7,3.02023749]
[1729263329869,0.37863,2641.2,2641.1,0.37863]
[1729263330172,0.94652,2641.4,2641.0,0.37865]
[1729263330368,0.37865,2641.1,2641.0,0.37865]
[1729263331171,0.37866,2641.0,2640.9,0.37867]
[1729263331373,0.94655,2641.3,2640.7,5.02348749]
[1729263331562,3.89648,2641.5,2640.7,5.02348749]
[1729263331759,0.37867,2641.0,2640.8,0.37868]
[1729263332475,0.37867,2641.0,2640.9,0.37867]
[1729263332683,0.4915,2641.2,2640.7,5.02348749]
[1729263332873,0.37865,2641.1,2641.0,0.37865]
[1729263333373,0.37865,2641.1,2640.7,5.97024749]
[1729263333573,0.37865,2641.1,2640.9,0.37866]
[1729263333872,0.37865,2641.1,2641.0,0.37865]
[1729263334076,0.4915,2641.2,2640.9,0.37866]
[1729263334273,0.37866,2641.0,2640.9,0.37866]
[1729263335175,1.4381,2641.2,2640.7,2.07348749]
[1729263335376,0.37869,2640.8,2640.7,2.07348749]
[1729263335573,0.37869,2640.8,2640.7,0.51578749]
[1729263335776,0.37869,2640.8,2640.7,0.3787]
[1729263335981,4.42403,2641.1,2640.6,3.2078]
[1729263335982,0.37867,2641.0,2640.9,0.37867]
[1729263336173,0.5274,2641.1,2641.0,0.37866]
[1729263336374,0.90604,2641.1,2641.0,0.37866]
[1729263336576,0.5274,2641.1,2640.8,0.5019]
[1729263336878,0.5274,2641.1,2640.9,0.37866]
[1729263337081,0.5274,2641.1,2640.8,0.5019]
[1729263337278,0.4915,2641.2,2640.9,3.2078]
[1729263337478,0.37863,2641.2,2641.1,0.37864]
[1729263337678,2.95,2641.4,2640.9,3.2078]
[1729263337882,0.37862,2641.3,2641.2,0.37863]
[1729263338086,0.37862,2641.3,2641.0,1.32531]
[1729263338383,0.37862,2641.3,2641.2,0.37863]
[1729263338579,2.05074964,2641.5,2641.3,0.37862]
[1729263338779,1.0612,2641.5,2641.0,0.37866]
[1729263339082,0.37861,2641.4,2641.3,0.3786]
[1729263339283,0.37863,2641.3,2641.2,0.37861]
[1729263339674,2.05074964,2641.5,2641.0,0.37866]
[1729263339871,0.37861,2641.4,2641.3,0.3786]
[1729263340380,4.16421,2641.4,2641.3,0.3786]
[1729263341081,0.37863,2641.3,2641.2,0.37862]
[1729263341585,0.98954964,2641.4,2641.3,0.37862]
[1729263341785,0.3786,2641.4,2641.3,0.37862]
[1729263342080,5.15374964,2641.4,2641.3,0.37862]
[1729263342786,0.98954964,2641.4,2641.3,0.37862]
[1729263342979,0.39131176,2641.8,2641.5,0.37859]
[1729263343184,1.48425445,2642.1,2641.6,7.63254]
[1729263343387,1.48425445,2642.4,2642.3,0.37847]
[1729263343692,0.37842,2642.7,2642.4,0.37845]
[1729263343985,3.2078,2642.8,2642.5,1.0401]
[1729263344381,3.58621,2642.8,2642.6,0.37843]
[1729263344686,3.58621,2642.8,2642.6,0.37842]
[1729263344889,3.2078,2642.8,2642.5,1.0401]
[1729263345188,3.2078,2642.8,2642.7,0.37841]
[1729263345383,41.3219,2643.0,2642.6,2.95]
[1729263345384,40.8,2643.0,2642.6,2.95]
[1729263345592,0.37835,2643.2,2642.7,0.5135]
[1729263345781,1.04,2643.4,2643.1,0.37835]
[1729263345782,1.41832,2643.4,2643.1,0.37835]
[1729263346082,0.37834,2643.2,2643.0,0.37836]
[1729263346289,41.17833,2643.3,2643.0,0.37836]
[1729263346488,0.37835,2643.2,2642.9,3.58618]
[1729263346684,41.17834,2643.3,2642.9,6.1578]
[1729263346881,3.2078,2643.6,2643.5,0.3783]
[1729263347082,3.2078,2643.6,2643.5,3.3283]
[1729263347287,44.0078,2643.6,2643.2,1.0767]
[1729263347584,0.3783,2643.5,2643.3,0.37833]
[1729263347784,44.0078,2643.6,2643.2,1.0767]
[1729263348088,0.37831,2643.5,2643.2,1.45504]
[1729263348678,0.37831,2643.5,2643.2,1.0767]
[1729263348890,0.37831,2643.5,2643.2,1.45503]
[1729263349184,0.3783,2643.5,2643.2,1.97489897]
[1729263349390,3.63,2643.5,2642.7,0.5135]
[1729263349590,0.37836,2643.2,2642.9,0.37838]
[1729263349883,0.37836,2643.2,2642.6,3.2078]
[1729263349884,3.58613,2643.3,2642.7,0.94604]
[1729263350087,1.0186,2643.4,2643.2,0.37834]
[1729263350282,1.0186,2643.4,2642.9,6.8378]
[1729263350481,1.39692,2643.4,2643.2,0.37834]
[1729263350790,1.39692,2643.4,2643.1,0.37835]
[1729263350978,0.37833,2643.3,2643.0,1.41266]
[1729263351180,1.0186,2643.4,2643.2,0.37834]
[1729263351589,1.39692,2643.4,2643.2,0.37834]
[1729263351789,1.0186,2643.4,2643.0,1.0343]
[1729263351983,0.37836,2643.1,2642.9,0.37838]
[1729263352288,1.0186,2643.4,2642.7,1.43031]
[1729263352289,0.37839,2642.9,2642.7,1.43031]
[1729263352583,1.96441,2643.4,2642.5,3.2078]
[1729263352584,3.2078,2643.0,2642.5,3.2078]
[1729263352789,0.37842,2642.7,2642.5,3.2078]
[1729263352983,40.8,2642.6,2642.5,3.2078]
[1729263353587,40.8,2642.6,2642.5,3.58624]
[1729263353781,40.8,2642.6,2642.5,3.2078]
[1729263354389,40.8,2642.6,2642.5,3.58624]
[1729263356388,40.8,2642.6,2642.5,3.2078]
[1729263356389,41.17843,2642.6,2642.5,3.2078]
[1729263358486,41.17843,2642.6,2642.3,0.37847]
[1729263358487,0.37844,2642.5,2642.3,0.37847]
[1729263359390,40.8,2642.6,2642.2,0.5027]
[1729263359584,40.8,2642.6,2642.5,0.37844]
[1729263360492,40.8,2642.6,2642.2,0.5027]
[1729263360679,0.37845,2642.5,2642.3,0.37847]
[1729263360883,0.37845,2642.5,2642.2,0.5027]
[1729263360884,40.8,2642.6,2642.2,1.14892917]
[1729263361083,40.8,2642.6,2642.5,0.37844]
[1729263361288,41.17843,2642.6,2642.2,1.14892917]
[1729263361491,40.8,2642.6,2642.2,1.14892917]
[1729263362603,0.37847,2642.3,2642.2,1.14892917]
[1729263362893,4.57615,2642.4,2641.8,3.84392762]
[1729263363097,7.5313,2642.5,2641.8,0.63612762]
[1729263363098,3.7465,2642.5,2641.8,0.63612762]
[1729263363302,0.5117,2642.4,2641.8,0.63612762]
[1729263363594,0.5117,2642.4,2641.9,3.2078]
[1729263363802,0.5117,2642.4,2642.0,0.5094]
[1729263364097,0.37848,2642.3,2642.1,0.37849]
[1729263364294,0.89016,2642.4,2642.2,0.37848]
[1729263364501,0.5117,2642.4,2642.0,0.5094]
[1729263364700,0.89016,2642.4,2642.2,0.37848]
[1729263364994,0.37849,2642.2,2642.1,0.4983]
[1729263365392,0.37849,2642.2,2642.1,0.8768]
[1729263365595,0.37849,2642.2,2642.1,0.4983]
[1729263365787,0.3785,2642.1,2642.0,0.5094]
[1729263366295,0.3785,2642.1,2642.0,3.7172]
[1729263366793,0.37849,2642.2,2642.0,4.09571]
[1729263367101,0.37848,2642.3,2642.1,0.3785]
[1729263367397,0.37848,2642.3,2642.0,3.7172]
[1729263367598,0.5117,2642.4,2642.1,0.3785]
[1729263367794,0.5117,2642.4,2642.0,0.5094]
[1729263367795,0.3785,2642.1,2642.0,0.5094]
[1729263368299,0.5117,2642.4,2642.0,0.5094]
[1729263368501,0.3785,2642.1,2642.0,0.5094]
[1729263368895,0.37847,2642.3,2642.0,4.1394]
[1729263369091,0.3785,2642.1,2642.0,0.5094]
[1729263369904,4.40786,2642.4,2641.8,0.4983]
[1729263370094,0.37857,2641.6,2641.5,3.2078]
[1729263370598,0.37857,2641.6,2641.5,3.83482042]
[1729263370901,0.37856,2641.7,2641.5,3.83482042]
[1729263371099,1.0484,2641.8,2641.7,0.37856]
[1729263371305,1.0484,2641.8,2641.6,0.89177]
[1729263371306,0.37856,2641.7,2641.6,0.89177]
[1729263371597,0.37856,2641.7,2641.6,0.5132]
[1729263372100,1.0484,2641.8,2641.6,0.5132]
[1729263372397,1.0484,2641.8,2641.7,0.37856]
[1729263373002,3.2078,2642.2,2641.6,0.5132]
[1729263373205,4.245,2642.2,2641.7,0.494]
[1729263373495,0.37852,2642.0,2641.9,0.37852]
[1729263373701,0.37848,2642.3,2642.2,0.37847]
[1729263373893,3.2078,2642.5,2641.9,3.89633]
[1729263374094,0.37846,2642.4,2642.3,0.37846]
[1729263374295,3.2078,2642.5,2641.8,3.7396]
[1729263374497,0.37851,2642.1,2641.9,0.37853]
[1729263374700,0.37852,2642.0,2641.9,0.37853]
[1729263374894,0.37852,2642.0,2641.9,0.37852]
[1729263375303,0.37851,2642.1,2642.0,0.37851]
[1729263375694,0.37851,2642.1,2641.9,0.37852]
[1729263375901,0.37853,2641.9,2641.8,4.37996965]
[1729263376101,0.37856,2641.7,2641.6,0.5132]
[1729263376402,0.87905,2641.8,2641.7,0.37856]
[1729263376607,0.5005,2641.8,2641.6,0.5132]
[1729263376801,0.37856,2641.7,2641.5,0.37858]
[1729263377100,0.87905,2641.8,2641.6,0.37856]
[1729263377293,0.37856,2641.7,2641.6,0.37857]
[1729263377494,0.87905,2641.8,2641.5,0.4976]
[1729263377703,3.735,2642.0,2641.5,3.4476]
[1729263377912,0.3785,2642.1,2642.0,0.37851]
[1729263378097,4.2263,2642.5,2642.0,2.95]
[1729263378499,4.2263,2642.5,2642.2,0.37847]
[1729263378706,0.37846,2642.4,2642.1,0.5389]
[1729263379002,4.2263,2642.5,2642.4,0.37846]
[1729263379003,4.60475,2642.5,2642.4,0.37846]
[1729263379211,4.60475,2642.5,2642.1,0.5389]
[1729263379212,0.37849,2642.3,2642.2,0.37848]
[1729263379404,4.2263,2642.5,2642.1,0.5389]
[1729263379595,0.37848,2642.3,2642.2,0.37847]
[1729263380700,0.37847,2642.4,2642.3,0.37847]
[1729263380897,0.37848,2642.3,2642.2,0.37848]
[1729263381610,2.95,2642.4,2641.9,0.5141]
[1729263381807,0.37854,2641.8,2641.7,0.88275]
[1729263382104,0.37856,2641.7,2641.6,1.16149915]
[1729263382304,0.37857,2641.6,2641.5,0.87958]
[1729263382695,0.37856,2641.7,2641.6,0.37856]
[1729263382900,1.43884,2641.9,2641.8,0.37854]
[1729263383096,3.2078,2642.1,2641.7,0.9464]
[1729263383304,0.3785,2642.2,2642.1,0.3785]
[1729263384207,0.504,2642.3,2642.0,1.0025]
[1729263384403,0.37849,2642.2,2642.1,0.37849]
[1729263385204,0.504,2642.3,2642.0,1.0025]
[1729263385507,0.3785,2642.1,2642.0,1.38101]
[1729263385695,0.37853,2642.0,2641.9,0.37851]
[1729263387201,0.37853,2641.9,2641.8,1.38793]
[1729263387397,3.7118,2642.3,2641.8,1.65838008]
[1729263387603,3.7118,2642.3,2642.0,0.37851]
[1729263387805,3.7118,2642.3,2641.8,1.65838008]
[1729263388106,0.37853,2641.9,2641.8,2.03692008]
[1729263388416,3.89622,2642.2,2641.8,1.65838008]
[1729263388609,0.37853,2641.9,2641.8,1.65838008]
[1729263388910,3.7118,2642.3,2641.8,1.65838008]
[1729263389118,0.37853,2642.0,2641.8,1.65838008]
[1729263389414,0.3785,2642.1,2642.0,0.37851]
[1729263389600,0.37851,2642.1,2641.8,1.65838008]
[1729263389801,0.37851,2642.1,2642.0,0.3785]
[1729263389802,0.3785,2642.1,2642.0,0.3785]
[1729263390306,0.37853,2641.9,2641.8,1.65838008]
[1729263390522,4.65799,2642.3,2641.8,1.65838008]
[1729263390812,0.37852,2642.0,2641.9,0.37852]
[1729263391008,0.37852,2642.0,2641.9,0.37853]
[1729263392302,4.65799,2642.3,2641.8,1.65838008]
[1729263392695,4.65799,2642.3,2641.8,4.60838008]
[1729263392900,0.37851,2642.1,2642.0,0.37851]
[1729263393107,3.7118,2642.3,2641.8,4.60838008]
[1729263393311,0.37851,2642.1,2642.0,0.37851]
[1729263393699,1.45019,2642.3,2641.8,1.65838008]
[1729263393901,0.37852,2642.0,2641.9,0.37852]
[1729263394209,0.504,2642.3,2641.8,1.65838008]
[1729263394509,0.37852,2642.0,2641.9,0.37852]
[1729263395116,0.94623,2642.2,2641.8,1.65838008]
[1729263395408,0.37853,2641.9,2641.8,1.14728008]
[1729263395609,0.37853,2641.9,2641.8,0.64898008]
[1729263395812,0.37853,2642.0,2641.8,0.37854]
[1729263396013,1.97900594,2642.2,2642.1,0.3785]
[1729263396219,0.37851,2642.1,2642.0,0.3785]
[1729263396509,2.48300594,2642.3,2642.1,0.3785]
[1729263396510,0.3785,2642.2,2642.1,0.3785]
[1729263396911,0.88249,2642.3,2642.2,0.37849]
[1729263397113,0.504,2642.3,2641.7,4.37385343]
[1729263397319,0.37849,2642.2,2642.1,0.37849]
[1729263398021,0.3785,2642.2,2642.1,0.37849]
[1729263398403,2.35954845,2642.2,2642.1,0.37849]
[1729263399011,2.35954845,2642.2,2642.1,0.92159]
[1729263399224,0.37849,2642.2,2642.1,0.92159]